bitfinex/quotes_BTCUSD_20250330
["timestamp","ask_amount","ask_price","bid_price","bid_amount"]
[1743301038423,0.30004707,83372.0,83368.0,0.011995]
[1743301038639,0.30204707,83372.0,83368.0,0.011995]
[1743301038847,4.707e-05,83372.0,83369.0,0.10715375]
[1743301039059,0.001,83370.0,83369.0,0.34705075]
[1743301039260,0.001,83370.0,83369.0,0.7856856]
[1743301039474,4.707e-05,83372.0,83371.0,0.251885]
[1743301039678,4.707e-05,83372.0,83371.0,0.334185]
[1743301039879,0.00204707,83372.0,83371.0,0.380485]
[1743301040296,0.00204707,83372.0,83371.0,0.39502585]
[1743301040500,4.707e-05,83372.0,83371.0,0.39502585]
[1743301040704,4.707e-05,83372.0,83371.0,0.14414085]
[1743301040915,0.00204707,83372.0,83371.0,0.14414085]
[1743301041336,4.707e-05,83372.0,83371.0,0.14414085]
[1743301042260,0.00021567,83372.0,83371.0,0.14414085]
[1743301043038,0.25209767,83372.0,83371.0,0.14414085]
[1743301043817,0.30021567,83372.0,83371.0,0.14414085]
[1743301044774,0.30021567,83372.0,83371.0,0.55624085]
[1743301044982,0.55209767,83372.0,83371.0,0.55624085]
[1743301045742,0.55209767,83372.0,83371.0,0.5417]
[1743301045944,0.55209767,83372.0,83371.0,0.4131]
[1743301046351,0.30021567,83372.0,83371.0,0.67952585]
[1743301046572,0.30021567,83372.0,83371.0,0.86887185]
[1743301046573,0.00021567,83372.0,83371.0,0.86887185]
[1743301048195,0.00021567,83372.0,83371.0,0.61698685]
[1743301049023,0.00021567,83372.0,83371.0,0.55444085]
[1743301049798,0.24010367,83372.0,83371.0,0.55444085]
[1743301050025,0.01220967,83372.0,83371.0,0.55444085]
[1743301050953,0.00021567,83372.0,83371.0,0.55444085]
[1743301052994,0.00021567,83372.0,83371.0,0.56643485]
[1743301055202,0.00021567,83372.0,83371.0,0.56543485]
[1743301055560,0.00021567,83372.0,83371.0,0.56843485]
[1743301055766,0.00021567,83372.0,83371.0,0.57143485]
[1743301056887,0.0001686,83378.0,83377.0,0.011993]
[1743301057092,0.0001686,83378.0,83377.0,0.10753385]
[1743301057512,0.0001686,83378.0,83377.0,0.50314547]
[1743301058336,0.0001686,83378.0,83377.0,0.50514547]
[1743301058479,0.0001686,83378.0,83377.0,0.50314547]
[1743301058672,0.0001686,83378.0,83377.0,0.50514547]
[1743301058874,0.0001686,83378.0,83377.0,0.50814547]
[1743301059130,0.0001686,83378.0,83377.0,0.50614547]
[1743301059336,0.0001686,83378.0,83377.0,0.50314547]
[1743301059547,0.0001686,83378.0,83377.0,0.51114547]
[1743301060240,0.0001686,83378.0,83377.0,0.40330785]
[1743301061331,0.0001686,83378.0,83377.0,0.27162]
[1743301061564,0.0001686,83378.0,83377.0,0.523487]
[1743301061772,0.0001686,83378.0,83377.0,0.53802785]
[1743301062362,0.0001686,83378.0,83377.0,0.94991218]
[1743301063634,0.0001686,83378.0,83377.0,0.69804518]
[1743301066913,0.0001686,83378.0,83377.0,0.56332518]
[1743301067118,0.0001686,83378.0,83377.0,0.69804518]
[1743301067377,0.2520326,83378.0,83377.0,0.56914518]
[1743301067860,0.0001686,83378.0,83377.0,0.56914518]
[1743301068401,0.0001686,83378.0,83377.0,0.56514518]
[1743301068620,0.0121616,83378.0,83377.0,0.56514518]
[1743301068817,0.0121616,83378.0,83377.0,0.56914518]
[1743301069043,0.0121616,83378.0,83377.0,0.41588433]
[1743301069242,0.0121616,83378.0,83377.0,0.55360433]
[1743301070877,0.0121616,83378.0,83377.0,0.41888433]
[1743301071599,0.0121616,83378.0,83377.0,0.41488433]
[1743301071898,0.2400396,83378.0,83377.0,0.41788433]
[1743301072260,0.2400396,83378.0,83377.0,0.41488433]
[1743301072462,0.2400396,83378.0,83377.0,0.65475833]
[1743301072463,0.0001686,83378.0,83377.0,0.65475833]
[1743301072671,0.0001686,83378.0,83377.0,0.82762821]
[1743301072876,0.0001686,83378.0,83377.0,0.82962821]
[1743301073078,0.0001686,83378.0,83377.0,0.83062821]
[1743301073280,0.0001686,83378.0,83377.0,0.90652821]
[1743301074089,0.3,83390.0,83385.0,0.011992]
[1743301074301,0.3,83390.0,83387.0,0.01454085]
[1743301074579,0.311992,83388.0,83387.0,0.01454085]
[1743301075530,0.03318372,83429.0,83387.0,0.01454085]
[1743301075531,0.3,83395.0,83393.0,0.011991]
[1743301075701,0.3,83395.0,83393.0,0.251818]
[1743301075905,0.3,83395.0,83393.0,0.033427]
[1743301076121,0.011991,83394.0,83393.0,0.033427]
[1743301076343,0.3,83391.0,83387.0,0.02753285]
[1743301076589,0.3,83391.0,83388.0,0.011992]
[1743301076800,0.3,83391.0,83388.0,0.251833]
[1743301076953,0.3,83391.0,83388.0,0.011992]
[1743301077384,0.3,83391.0,83387.0,0.01554085]
[1743301077967,0.3,83391.0,83387.0,0.01454085]
[1743301078766,0.3001686,83391.0,83387.0,0.01454085]
[1743301080026,0.3001686,83391.0,83388.0,0.41154703]
[1743301080369,0.251827,83390.0,83388.0,0.41154703]
[1743301080605,0.011991,83389.0,83388.0,0.41154703]
[1743301081183,0.311991,83389.0,83388.0,0.41154703]
[1743301082866,0.312991,83389.0,83388.0,0.41154703]
[1743301083079,0.32219142,83389.0,83388.0,0.41154703]
[1743301083408,0.32219142,83389.0,83388.0,0.41254703]
[1743301083611,0.31574476,83389.0,83388.0,0.41254703]
[1743301084033,0.31574476,83389.0,83388.0,0.41154703]
[1743301084416,0.31674476,83389.0,83388.0,0.41154703]
[1743301085937,0.011994,83374.0,83373.0,0.41154703]
[1743301086335,0.251876,83374.0,83373.0,0.41154703]
[1743301087426,0.251876,83374.0,83373.0,0.41354703]
[1743301088712,0.011993,83376.0,83373.0,0.41654703]
[1743301088906,0.311993,83379.0,83373.0,0.66842603]
[1743301089482,0.3,83381.0,83379.0,0.0498]
[1743301089877,0.0001686,83391.0,83388.0,0.011992]
[1743301090078,0.0001686,83391.0,83389.0,0.25183]
[1743301090193,0.0001686,83391.0,83388.0,0.011992]
[1743301090394,0.5400046,83391.0,83386.0,0.01454085]
[1743301090669,0.3,83387.0,83386.0,0.01454085]
[1743301090837,0.3,83387.0,83385.0,0.01454085]
[1743301091443,0.539848,83386.0,83385.0,0.01454085]
[1743301091709,0.3,83386.0,83385.0,0.42608788]
[1743301092437,0.3,83386.0,83385.0,0.67793088]
[1743301092585,0.0021686,83391.0,83388.0,0.239842]
[1743301092773,0.0021686,83391.0,83388.0,0.238842]
[1743301092974,0.0021686,83391.0,83388.0,0.237842]
[1743301093195,0.0001686,83391.0,83388.0,0.237842]
[1743301093401,0.0001686,83391.0,83390.0,0.251827]
[1743301093578,0.0001686,83391.0,83390.0,0.34466785]
[1743301094271,0.0021686,83391.0,83390.0,0.34466785]
[1743301094646,0.0001686,83391.0,83390.0,0.34466785]
[1743301094850,0.0001686,83391.0,83390.0,0.09284085]
[1743301095058,0.0141596,83391.0,83390.0,0.22752085]
[1743301095865,0.0021686,83391.0,83390.0,0.22752085]
[1743301096210,0.0041686,83391.0,83390.0,0.22752085]
[1743301096345,0.0041686,83391.0,83390.0,0.23951185]
[1743301096549,0.0021686,83391.0,83390.0,0.23951185]
[1743301096764,0.0001686,83391.0,83390.0,0.23951185]
[1743301097724,0.0001686,83391.0,83390.0,0.65105888]
[1743301101136,0.0001686,83391.0,83390.0,0.70085888]
[1743301103963,0.0001686,83391.0,83390.0,0.75728034]
[1743301104965,0.0001686,83391.0,83390.0,0.70085888]
[1743301106453,0.0001686,83391.0,83390.0,0.68886788]
[1743301108150,0.2519936,83391.0,83390.0,0.54622703]
[1743301108598,0.0001686,83391.0,83390.0,0.79805403]
[1743301111550,0.0001686,83391.0,83390.0,0.54622703]
[1743301112230,0.2519936,83391.0,83390.0,0.54622703]
[1743301115604,0.5519936,83391.0,83390.0,0.41154703]
[1743301117652,0.5539936,83391.0,83390.0,0.41154703]
[1743301117790,0.5649692,83391.0,83390.0,0.41154703]
[1743301117995,0.6148692,83391.0,83390.0,0.41154703]
[1743301118610,0.63367668,83391.0,83390.0,0.41154703]
[1743301119389,0.25183,83389.0,83388.0,0.0003374]
[1743301119594,0.55183,83389.0,83388.0,0.0003374]
[1743301120901,0.55383,83389.0,83388.0,0.0003374]
[1743301134122,0.002,83389.0,83388.0,0.0003374]
[1743301134947,0.241839,83389.0,83388.0,0.0003374]
[1743301135677,0.25383,83389.0,83388.0,0.0003374]
[1743301136159,0.55383,83389.0,83388.0,0.0003374]
[1743301139173,0.5539987,83389.0,83388.0,0.0003374]
[1743301145248,0.3021687,83389.0,83388.0,0.0899294]
[1743301145453,0.3021687,83389.0,83388.0,0.1388294]
[1743301145654,0.0021687,83389.0,83388.0,0.1388294]
[1743301145859,0.0021687,83389.0,83388.0,0.15337025]
[1743301147515,0.0011687,83389.0,83388.0,0.56491728]
[1743301147796,0.0011687,83389.0,83388.0,0.69959728]
[1743301148008,0.0001687,83389.0,83388.0,0.69959728]
[1743301149007,0.0001687,83389.0,83388.0,0.70059728]
[1743301150099,0.0001687,83389.0,83388.0,0.82088211]
[1743301152915,0.0001687,83389.0,83388.0,0.68860528]
[1743301153134,0.0001687,83389.0,83388.0,0.55392528]
[1743301153377,0.2519987,83389.0,83388.0,0.68856528]
[1743301153834,0.2519987,83389.0,83388.0,0.67402443]
[1743301155705,0.2519987,83389.0,83388.0,0.46178443]
[1743301155915,0.2519987,83389.0,83388.0,0.41288443]
[1743301162162,0.2519987,83389.0,83388.0,0.41188443]
[1743301162649,0.5519987,83389.0,83388.0,0.41188443]
[1743301163702,0.56550375,83389.0,83388.0,0.41188443]
[1743301163905,0.5519987,83389.0,83388.0,0.0003374]
[1743301166913,0.5539987,83389.0,83388.0,0.0003374]
[1743301167028,0.5539987,83389.0,83388.0,0.41188443]
[1743301167790,0.5539987,83389.0,83388.0,0.40921257]
[1743301169250,0.002,83389.0,83388.0,0.40921257]
[1743301169760,0.012991,83389.0,83388.0,0.40921257]
[1743301169966,0.25283,83389.0,83388.0,0.40921257]
[1743301170585,0.25183,83389.0,83388.0,0.40921257]
[1743301173791,0.55183,83389.0,83388.0,0.40954997]
[1743301173989,0.5519987,83389.0,83388.0,0.40954997]
[1743301179578,0.5519987,83389.0,83388.0,0.40487292]
[1743301179777,0.5529987,83389.0,83388.0,0.40487292]
[1743301180108,0.5519987,83389.0,83388.0,0.40487292]
[1743301180763,0.5529987,83389.0,83388.0,0.40487292]
[1743301180985,0.5539987,83389.0,83388.0,0.40487292]
[1743301182705,0.5539987,83389.0,83388.0,0.0003374]
[1743301187678,0.3141597,83389.0,83388.0,0.0003374]
[1743301187942,0.3021687,83389.0,83388.0,0.0817374]
[1743301188431,0.3141597,83389.0,83388.0,0.0817374]
[1743301188681,0.3141597,83389.0,83388.0,0.48627292]
[1743301188936,0.3141597,83389.0,83388.0,0.40487292]
[1743301194497,0.3141597,83389.0,83388.0,0.0003374]
[1743301195097,0.3492045,83389.0,83388.0,0.0003374]
[1743301209500,0.3372135,83389.0,83388.0,0.1307374]
[1743301209718,0.3021687,83389.0,83388.0,0.78938786]
[1743301210018,0.5420077,83389.0,83388.0,0.54954586]
[1743301210232,0.3021687,83389.0,83388.0,0.54954586]
[1743301210433,0.5539987,83389.0,83388.0,0.53527292]
[1743301214167,0.5539987,83389.0,83388.0,0.40487292]
[1743301215021,0.5539987,83389.0,83388.0,0.0003374]
[1743301216483,0.58904021,83389.0,83388.0,0.0003374]
[1743301219091,0.5539987,83389.0,83388.0,0.0003374]
[1743301223255,0.58904141,83389.0,83388.0,0.0003374]
[1743301224546,0.5539987,83389.0,83388.0,0.0003374]
[1743301226371,0.55356166,83389.0,83388.0,0.0003374]
[1743301226526,0.30173166,83389.0,83388.0,0.0801374]
[1743301226727,0.31372266,83389.0,83388.0,0.53998586]
[1743301228066,0.31372266,83389.0,83388.0,0.53077292]
[1743301237317,0.31372266,83389.0,83388.0,0.40487292]
[1743301237523,0.0141597,83389.0,83388.0,0.40487292]
[1743301238265,0.0141597,83389.0,83388.0,0.0003374]
[1743301240190,0.33296806,83389.0,83388.0,0.0003374]
[1743301241978,0.3141597,83389.0,83388.0,0.0003374]
[1743301245416,0.33296864,83389.0,83388.0,0.0003374]
[1743301245755,0.3141597,83389.0,83388.0,0.0003374]
[1743301246159,0.3141597,83389.0,83388.0,0.1246374]
[1743301246360,0.0021687,83389.0,83388.0,0.1246374]
[1743301246614,0.0021687,83389.0,83388.0,0.3764714]
[1743301246786,0.5539987,83389.0,83388.0,0.1246374]
[1743301247340,0.5539987,83389.0,83388.0,0.52917292]
[1743301251111,0.5529987,83389.0,83388.0,0.52917292]
[1743301251307,0.5539987,83389.0,83388.0,0.52917292]
[1743301251712,0.5529987,83389.0,83388.0,0.52917292]
[1743301252124,0.5539987,83389.0,83388.0,0.52917292]
[1743301261994,0.5539987,83389.0,83388.0,0.40487292]
[1743301264077,0.58903486,83389.0,83388.0,0.40487292]
[1743301264687,0.58903486,83389.0,83388.0,0.0003374]
[1743301265103,0.60784301,83389.0,83388.0,0.0003374]
[1743301265776,0.58903486,83389.0,83388.0,0.0003374]
[1743301269205,0.60784387,83389.0,83388.0,0.0003374]
[1743301272349,0.5539987,83389.0,83388.0,0.0499374]
[1743301272690,0.5539987,83389.0,83388.0,0.0003374]
[1743301282109,0.5539987,83389.0,83388.0,0.0798374]
[1743301282499,0.5539987,83389.0,83388.0,0.48437292]
[1743301282727,0.5539987,83389.0,83388.0,0.40487292]
[1743301288582,0.3021687,83389.0,83388.0,0.48437292]
[1743301288791,0.3021687,83389.0,83388.0,0.53087292]
[1743301289005,0.0021687,83389.0,83388.0,0.78270692]
[1743301289211,0.0021687,83389.0,83388.0,0.53087292]
[1743301289411,0.0021687,83389.0,83388.0,0.61034341]
[1743301289931,0.0141597,83389.0,83388.0,0.61034341]
[1743301290131,0.0141597,83389.0,83388.0,0.53087292]
[1743301290912,0.0021687,83389.0,83388.0,0.54286492]
[1743301291547,0.0021687,83389.0,83388.0,0.55740577]
[1743301291747,0.0011687,83389.0,83388.0,0.55740577]
[1743301291939,0.0001687,83389.0,83388.0,0.55740577]
[1743301292061,0.0001687,83389.0,83388.0,0.67697405]
[1743301292731,0.0001687,83389.0,83388.0,0.55740577]
[1743301294449,0.0001687,83389.0,83388.0,0.56040577]
[1743301294649,0.0001687,83389.0,83388.0,0.56340577]
[1743301295850,0.0001687,83389.0,83388.0,0.55141377]
[1743301300231,0.0001687,83389.0,83388.0,0.53687292]
[1743301300453,0.0121597,83389.0,83388.0,0.53687292]
[1743301301418,0.0001687,83389.0,83388.0,0.53687292]
[1743301301824,0.0001687,83389.0,83388.0,0.77671492]
[1743301302004,0.0001687,83389.0,83388.0,0.53687292]
[1743301303538,0.0001687,83389.0,83388.0,0.77671492]
[1743301303859,0.0001687,83389.0,83388.0,0.80781511]
[1743301304038,0.0001687,83389.0,83388.0,0.81980711]
[1743301305202,0.0001687,83389.0,83388.0,0.56797311]
[1743301305426,0.0001687,83389.0,83388.0,0.82235596]
[1743301305619,0.0001687,83389.0,83388.0,0.83434796]
[1743301306040,0.0001687,83389.0,83388.0,0.59450596]
[1743301306850,0.0001687,83389.0,83388.0,0.83434796]
[1743301308670,0.0001687,83389.0,83388.0,0.83134796]
[1743301309724,0.0001687,83389.0,83388.0,0.82834796]
[1743301309930,0.0001687,83389.0,83388.0,0.83234796]
[1743301310144,0.0001687,83389.0,83388.0,0.83534796]
[1743301311715,0.00022518,83396.0,83395.0,0.65601122]
[1743301312037,0.00022518,83396.0,83395.0,0.91127278]
[1743301313330,0.00022518,83396.0,83395.0,0.91527278]
[1743301314165,0.00022518,83396.0,83395.0,0.91127278]
[1743301314439,0.00022518,83396.0,83395.0,0.91427278]
[1743301315061,0.00022518,83396.0,83395.0,0.91727278]
[1743301317572,0.0001687,83409.0,83406.0,0.0772]
[1743301317781,0.00021576,83409.0,83407.0,0.41851389]
[1743301318120,0.251774,83408.0,83407.0,0.41851389]
[1743301318817,0.00021576,83409.0,83407.0,0.41851389]
[1743301319653,0.00021576,83409.0,83408.0,0.25432585]
[1743301319865,0.00021576,83409.0,83408.0,0.37461068]
[1743301320426,0.00021576,83409.0,83408.0,0.13482568]
[1743301320725,0.00021576,83409.0,83408.0,0.01454085]
[1743301321306,0.01220476,83409.0,83408.0,0.41851389]
[1743301322810,0.00021576,83409.0,83408.0,0.41851389]
[1743301323151,0.00021576,83409.0,83408.0,0.71648789]
[1743301323366,0.00021576,83409.0,83408.0,0.79878789]
[1743301323516,0.00021576,83409.0,83408.0,0.91907272]
[1743301324141,0.00021576,83409.0,83408.0,0.92207272]
[1743301324943,0.00021576,83409.0,83408.0,0.92107272]
[1743301325486,0.00021576,83409.0,83408.0,0.91907272]
[1743301326280,0.239725,83429.0,83419.0,0.011987]
[1743301326281,0.25172,83426.0,83419.0,0.011987]
[1743301326483,0.011986,83425.0,83421.0,0.01454085]
[1743301326684,0.011986,83425.0,83423.0,0.06124085]
[1743301327441,0.239739,83424.0,83423.0,0.06124085]
[1743301327651,0.251725,83424.0,83423.0,0.01454085]
[1743301327853,0.011987,83422.0,83421.0,0.01454085]
[1743301328075,0.011987,83422.0,83421.0,0.14906085]
[1743301328276,0.011987,83422.0,83421.0,0.1908738]
[1743301328428,0.251725,83424.0,83421.0,0.1908738]
[1743301329173,0.011986,83425.0,83421.0,0.1908738]
[1743301329731,0.00047075,83429.0,83428.0,0.011986]
[1743301329934,0.00047075,83429.0,83428.0,0.31295385]
[1743301331327,0.00147075,83429.0,83428.0,0.06124085]
[1743301331532,0.00047075,83429.0,83428.0,0.06124085]
[1743301331685,0.00147075,83429.0,83428.0,0.06124085]
[1743301332898,0.00047075,83429.0,83428.0,0.06124085]
[1743301333271,0.00047075,83429.0,83428.0,0.06224085]
[1743301333541,0.00047075,83429.0,83428.0,0.08382716]
[1743301334111,0.00047075,83429.0,83428.0,0.06224085]
[1743301335128,0.00047075,83429.0,83428.0,0.46582953]
[1743301337736,0.00047075,83429.0,83428.0,0.47781553]
[1743301339062,0.00047075,83429.0,83428.0,0.71754253]
[1743301345874,0.00047075,83429.0,83428.0,0.40458868]
[1743301346113,0.31245675,83429.0,83428.0,0.40458868]
[1743301346294,0.31245675,83429.0,83428.0,0.001]
[1743301352537,0.33598601,83429.0,83428.0,0.001]
[1743301354342,0.33615461,83429.0,83428.0,0.001]
[1743301354693,0.011987,83419.0,83418.0,0.40358868]
[1743301355615,0.25174,83419.0,83418.0,0.40358868]
[1743301355772,0.25174,83419.0,83418.0,0.40658868]
[1743301356114,0.55174,83419.0,83418.0,0.40658868]
[1743301357655,0.55174,83419.0,83418.0,0.40758868]
[1743301357899,0.55174,83419.0,83418.0,0.40458868]
[1743301358104,0.55174,83419.0,83418.0,0.40558868]
[1743301365933,0.3,83419.0,83418.0,0.40558868]
[1743301366425,0.311987,83419.0,83418.0,0.40558868]
[1743301372410,0.3,83419.0,83418.0,0.40558868]
[1743301372616,0.3,83419.0,83418.0,0.45308868]
[1743301372856,0.55174,83419.0,83418.0,0.45308868]
[1743301375285,0.3,83419.0,83418.0,0.45308868]
[1743301375521,0.311987,83419.0,83418.0,0.45308868]
[1743301378606,0.3121556,83419.0,83418.0,0.45308868]
[1743301380818,0.3121556,83419.0,83418.0,0.40558868]
[1743301394608,0.3001686,83419.0,83418.0,0.52554755]
[1743301394780,0.3001686,83419.0,83418.0,0.53428868]
[1743301394989,0.0001686,83419.0,83418.0,0.80057253]
[1743301397503,0.0001686,83419.0,83418.0,0.54882953]
[1743301397806,0.0121556,83419.0,83418.0,0.54882953]
[1743301398144,0.2519086,83419.0,83418.0,0.45488868]
[1743301398352,0.2519086,83419.0,83418.0,0.40558868]
[1743301399616,0.239749,83421.0,83418.0,0.40558868]
[1743301399967,0.25174,83419.0,83418.0,0.40558868]
[1743301400176,0.011987,83419.0,83418.0,0.40558868]
[1743301400575,0.011987,83419.0,83418.0,0.40458868]
[1743301400929,0.011987,83419.0,83418.0,0.40358868]
[1743301401541,0.0121557,83419.0,83418.0,0.40458868]
[1743301401756,0.0121557,83419.0,83418.0,0.40558868]
[1743301402122,0.0001687,83419.0,83418.0,0.57465815]
[1743301402820,0.0001687,83419.0,83418.0,0.55691653]
[1743301403077,0.0001687,83419.0,83418.0,0.55791653]
[1743301406391,0.0001687,83419.0,83418.0,0.54592953]
[1743301406591,0.0121557,83419.0,83418.0,0.53138868]
[1743301406774,0.0121557,83419.0,83418.0,0.40558868]
[1743301407180,0.0001687,83419.0,83418.0,0.40558868]
[1743301408985,0.0001687,83419.0,83418.0,0.41757568]
[1743301409382,0.0001687,83419.0,83418.0,0.40558868]
[1743301410521,0.2519087,83419.0,83418.0,0.40558868]
[1743301414097,0.0001687,83419.0,83418.0,0.40558868]
[1743301416378,0.2399217,83419.0,83418.0,0.40558868]
[1743301416673,0.2519087,83419.0,83418.0,0.40558868]
[1743301417316,0.5519087,83419.0,83418.0,0.40558868]
[1743301421489,0.5519087,83419.0,83418.0,0.40358868]
[1743301421785,0.5519087,83419.0,83418.0,0.40458868]
[1743301422172,0.5519087,83419.0,83418.0,0.40358868]
[1743301425167,0.5519087,83419.0,83418.0,0.40392608]
[1743301427889,0.5529087,83419.0,83418.0,0.40392608]
[1743301428629,0.5539087,83419.0,83418.0,0.40392608]
[1743301433357,0.5539087,83419.0,83418.0,0.0003374]
[1743301433763,0.58891887,83419.0,83418.0,0.0003374]
[1743301434580,0.58791887,83419.0,83418.0,0.0003374]
[1743301434917,0.58891887,83419.0,83418.0,0.0003374]
[1743301435097,0.59091887,83419.0,83418.0,0.0003374]
[1743301437571,0.63661887,83419.0,83418.0,0.0003374]
[1743301439229,0.65542252,83419.0,83418.0,0.0003374]
[1743301439833,0.65542252,83419.0,83418.0,4e-07]
[1743301440022,0.551761,83412.0,83411.0,2e-07]
[1743301440225,0.66207117,83412.0,83411.0,2e-07]
[1743301441281,0.67096419,83412.0,83411.0,2e-07]
[1743301441682,0.551806,83397.0,83394.0,0.40358868]
[1743301441966,0.551806,83397.0,83384.0,0.40358868]
[1743301442383,0.57061286,83397.0,83384.0,0.40358868]
[1743301443030,0.57061286,83397.0,83396.0,0.00038426]
[1743301444812,0.57161286,83397.0,83396.0,0.00038426]
[1743301445223,0.67261286,83397.0,83396.0,0.00038426]
[1743301445625,0.55183,83389.0,83377.0,0.046]
[1743301447245,0.55383,83389.0,83377.0,0.046]
[1743301447747,0.5660534,83389.0,83377.0,0.046]
[1743301447920,0.5680534,83389.0,83377.0,0.046]
[1743301449214,0.58686226,83389.0,83377.0,0.046]
[1743301450227,0.59608302,83389.0,83377.0,0.046]
[1743301455731,0.57727416,83389.0,83377.0,0.046]
[1743301462660,0.57727416,83389.0,83388.0,4e-07]
[1743301463037,0.59608371,83389.0,83388.0,4e-07]
[1743301463470,0.59408371,83389.0,83388.0,4e-07]
[1743301463877,0.59708371,83389.0,83388.0,4e-07]
[1743301464120,0.59208371,83389.0,83388.0,4e-07]
[1743301464440,0.59808371,83389.0,83388.0,4e-07]
[1743301465822,0.57627416,83389.0,83388.0,4e-07]
[1743301466056,0.57927416,83389.0,83388.0,4e-07]
[1743301466435,0.551876,83374.0,83373.0,0.40392588]
[1743301466606,0.551876,83374.0,83373.0,0.0003372]
[1743301471642,0.5755157,83374.0,83373.0,0.0003372]
[1743301495045,0.61060701,83374.0,83373.0,0.0003372]
[1743301502617,0.61541801,83374.0,83373.0,0.0003372]
[1743301503692,0.723265,83374.0,83373.0,0.0003372]
[1743301503837,0.74207679,83374.0,83373.0,0.0003372]
[1743301505922,0.74407679,83374.0,83373.0,0.0003372]
[1743301507236,0.311994,83373.0,83366.0,0.0003372]
[1743301507391,0.34708531,83373.0,83366.0,0.0003372]
[1743301508734,0.35008531,83373.0,83366.0,0.0003372]
[1743301510168,0.35308531,83373.0,83366.0,0.0003372]
[1743301510582,0.011995,83367.0,83366.0,0.0003372]
[1743301510783,0.58698931,83367.0,83366.0,0.0003372]
[1743301511327,0.62308031,83367.0,83366.0,0.0003372]
[1743301511717,0.75856031,83367.0,83366.0,0.0003372]
[1743301512712,0.75956031,83367.0,83366.0,0.0003372]
[1743301514674,0.76878836,83367.0,83366.0,0.0003372]
[1743301515782,0.78760359,83367.0,83366.0,0.0003372]
[1743301516926,0.76878836,83367.0,83366.0,0.0003372]
[1743301520292,0.78760356,83367.0,83366.0,0.0003372]
[1743301521848,0.78744465,83367.0,83366.0,0.0003372]
[1743301529044,0.76862945,83367.0,83366.0,0.0003372]
[1743301540404,0.78744429,83367.0,83366.0,0.0003372]
[1743301543167,0.89542468,83367.0,83366.0,0.0003372]
[1743301543361,0.89559348,83367.0,83366.0,0.0003372]
[1743301545888,0.87677864,83367.0,83366.0,0.0003372]
[1743301547043,0.76879825,83367.0,83366.0,0.0003372]
[1743301552731,0.73270725,83367.0,83366.0,0.0003372]
[1743301553584,0.83270725,83367.0,83366.0,2e-07]
[1743301553784,0.55193,83356.0,83350.0,0.1268]
[1743301553934,0.58702131,83356.0,83350.0,0.1268]
[1743301554577,0.6058376,83356.0,83350.0,0.1268]
[1743301555088,0.6058376,83356.0,83355.0,5.688e-05]
[1743301555844,0.58702131,83356.0,83355.0,5.688e-05]
[1743301558517,0.551946,83351.0,83350.0,0.04765623]
[1743301558721,0.58703731,83351.0,83350.0,0.0477973]
[1743301560212,0.3,83352.0,83350.0,0.0477973]
[1743301560713,0.011997,83351.0,83350.0,0.0477973]
[1743301560915,0.251946,83351.0,83350.0,0.0477973]
[1743301562990,0.26419818,83351.0,83350.0,0.0477973]
[1743301565091,0.26419818,83351.0,83350.0,0.1267973]
[1743301567919,0.26419818,83351.0,83350.0,0.1271347]
[1743301570281,0.56419818,83351.0,83350.0,0.1271347]
[1743301572989,0.56419818,83351.0,83350.0,0.00047847]
[1743301573195,0.59927499,83351.0,83350.0,0.00047847]
[1743301574470,0.60027499,83351.0,83350.0,0.00047847]
[1743301575155,0.34832899,83351.0,83350.0,0.04757847]
[1743301575354,0.31325218,83351.0,83350.0,0.12467847]
[1743301575603,0.56519818,83351.0,83350.0,0.16237648]
[1743301575799,0.56619818,83351.0,83350.0,0.12467847]
[1743301580913,0.56636688,83351.0,83350.0,0.12467847]
[1743301584372,0.56636688,83351.0,83350.0,0.04757847]
[1743301584611,0.56636688,83351.0,83350.0,0.00047847]
[1743301585539,0.60145169,83351.0,83350.0,0.00047847]
[1743301585677,0.61495674,83351.0,83350.0,0.00047847]
[1743301585883,0.60145169,83351.0,83350.0,4.7e-07]
[1743301586920,0.60045169,83351.0,83350.0,4.7e-07]
[1743301587082,0.60245169,83351.0,83350.0,4.7e-07]
[1743301587707,0.60145169,83351.0,83350.0,4.7e-07]
[1743301587915,0.73585169,83351.0,83350.0,4.7e-07]
[1743301588131,0.73785169,83351.0,83350.0,4.7e-07]
[1743301588930,0.75667033,83351.0,83350.0,4.7e-07]
[1743301591496,0.86483183,83351.0,83350.0,4.7e-07]
[1743301592254,0.551954,83348.0,83347.0,7e-08]
[1743301592456,0.58703881,83348.0,83347.0,1.4e-07]
[1743301593720,0.58803881,83348.0,83347.0,1.4e-07]
[1743301593923,0.58703881,83348.0,83347.0,1.4e-07]
[1743301594098,0.551994,83335.0,83334.0,0.0003374]
[1743301595370,0.5870793,83335.0,83334.0,0.0003374]
[1743301596324,0.5890793,83335.0,83334.0,0.0003374]
[1743301596881,0.5880793,83335.0,83334.0,0.00023707]
[1743301597186,0.552003,83332.0,83331.0,9.1e-07]
[1743301597398,0.5870883,83332.0,83331.0,9.1e-07]
[1743301597749,0.8910883,83332.0,83331.0,9.1e-07]
[1743301597976,0.90991043,83332.0,83331.0,9.1e-07]
[1743301598777,0.91191043,83332.0,83331.0,9.1e-07]
[1743301598976,0.5880883,83332.0,83331.0,9.1e-07]
[1743301599182,0.5870883,83332.0,83331.0,9.1e-07]
[1743301599401,0.5890883,83332.0,83331.0,9.1e-07]
[1743301599605,0.5920883,83332.0,83331.0,9.1e-07]
[1743301601134,0.25206,83313.0,83307.0,0.0751]
[1743301601449,0.55206,83313.0,83307.0,0.0751]
[1743301602284,0.55206,83313.0,83312.0,0.000809]
[1743301603481,0.56100108,83313.0,83312.0,0.000809]
[1743301605865,0.57349492,83313.0,83312.0,0.000809]
[1743301607545,0.59712386,83313.0,83312.0,0.000809]
[1743301609283,0.61594865,83313.0,83312.0,0.000809]
[1743301615885,0.59712386,83313.0,83312.0,0.000809]
[1743301619399,0.61594894,83313.0,83312.0,0.000809]
[1743301629320,0.65108575,83313.0,83312.0,0.000809]
[1743301629526,0.35706586,83313.0,83312.0,0.082209]
[1743301629731,0.58818278,83313.0,83312.0,0.128309]
[1743301631141,0.33612278,83313.0,83312.0,0.128309]
[1743301631505,0.58818278,83313.0,83312.0,0.128309]
[1743301634301,0.58818278,83313.0,83312.0,0.53189768]
[1743301656305,0.00918807,83318.0,83312.0,0.53189768]
[1743301656306,0.00902552,83327.0,83323.0,0.1266]
[1743301656565,0.3,83325.0,83323.0,0.1266]
[1743301656773,0.0240825,83324.0,83323.0,0.1266]
[1743301658085,0.5761095,83324.0,83323.0,0.1266]
[1743301672803,0.5761095,83324.0,83323.0,0.1269374]
[1743301681479,0.3240825,83324.0,83323.0,0.1269374]
[1743301681901,0.5761095,83324.0,83323.0,0.1269374]
[1743301682409,0.3,83324.0,83323.0,0.1269374]
[1743301683071,0.011999,83338.0,83330.0,0.240009]
[1743301683277,0.02430236,83332.0,83330.0,0.78179768]
[1743301684258,0.0021687,83331.0,83330.0,0.78179768]